bitfinex/quotes_SOLUSD_20240808
["timestamp","ask_amount","ask_price","bid_price","bid_amount"]
[1723149029960,6.3869,156.57,156.52,6.3888]
[1723149030169,6.3869,156.57,156.52,7.66272085]
[1723149030373,6.3869,156.57,156.52,6.3888]
[1723149030669,1.59694556,156.56,156.5,38.4109]
[1723149030967,1.59708694,156.61,156.5,38.4109]
[1723149031177,6.3878,156.55,156.5,38.4109]
[1723149031369,7.98526302,156.54,156.5,32.0215]
[1723149031559,6.3882,156.54,156.5,32.0215]
[1723149031761,6.3886,156.53,156.5,16.0478]
[1723149032279,15.9668,156.58,156.5,22.4373]
[1723149032582,6.3877,156.55,156.5,22.4373]
[1723149032759,20.0,156.54,156.5,22.4373]
[1723149033459,20.0,156.54,156.51,6.3893]
[1723149033876,20.0,156.54,156.5,16.0478]
[1723149033877,26.3881,156.54,156.5,16.0478]
[1723149034080,20.0,156.54,156.5,16.0478]
[1723149034265,6.3889,156.52,156.47,16.6196]
[1723149034468,20.0,156.57,156.48,1.27495361]
[1723149034662,45.0,156.56,156.48,1.27495361]
[1723149034858,20.0,156.55,156.47,16.6196]
[1723149035068,6.3892,156.52,156.47,23.0104]
[1723149035482,6.3892,156.52,156.48,6.3904]
[1723149035784,6.3885,156.53,156.48,6.3904]
[1723149035973,20.0,156.52,156.48,6.3904]
[1723149036772,20.0,156.52,156.48,15.9759]
[1723149036969,20.0,156.55,156.48,15.9759]
[1723149037488,6.3889,156.53,156.48,22.3664]
[1723149037665,20.0,156.52,156.48,22.3664]
[1723149037866,20.0,156.52,156.45,15.9792]
[1723149038070,6.3898,156.5,156.45,22.3709]
[1723149038266,20.0,156.49,156.45,22.3709]
[1723149038880,20.0,156.49,156.43,15.2427]
[1723149039066,20.0,156.53,156.43,15.2427]
[1723149039266,6.3909,156.48,156.43,21.635]
[1723149039981,6.3909,156.48,156.44,6.3921]
[1723149040297,45.0,156.52,156.41,6.66245526]
[1723149040298,6.393,156.42,156.41,6.66245526]
[1723149040507,6.3935,156.41,156.36,6.3954]
[1723149040807,21.59864858,156.41,156.35,37.6276]
[1723149041099,21.59864858,156.41,156.35,31.2318]
[1723149041100,26.3935,156.41,156.35,31.2318]
[1723149041306,20.0,156.41,156.37,15.9867]
[1723149041597,6.3927,156.43,156.38,6.3945]
[1723149041894,26.393,156.42,156.38,6.3945]
[1723149042103,6.393,156.42,156.37,22.3816]
[1723149042290,20.0,156.41,156.38,6.3945]
[1723149042610,20.0,156.41,156.39,6.3939]
[1723149042898,20.0,156.41,156.38,6.3946]
[1723149043093,20.0,156.42,156.38,6.3946]
[1723149044009,6.3938,156.4,156.36,6.3954]
[1723149044193,20.0,156.42,156.36,6.3954]
[1723149044495,20.0,156.46,156.36,6.3954]
[1723149044698,45.0,156.45,156.36,6.3954]
[1723149045201,6.3938,156.4,156.35,21.6385]
[1723149045387,6.3938,156.4,156.36,6.3954]
[1723149045569,6.3938,156.4,156.35,15.2427]
[1723149045570,6.3938,156.4,156.35,21.6385]
[1723149045773,6.3938,156.4,156.36,6.3954]
[1723149045982,6.3935,156.41,156.36,6.3954]
[1723149047589,6.3939,156.4,156.35,21.6385]
[1723149049693,26.3943,156.39,156.35,21.6385]
[1723149050298,26.3943,156.39,156.35,15.2427]
[1723149050611,26.3943,156.39,156.35,21.6385]
[1723149051203,20.0,156.39,156.35,21.6385]
[1723149053199,20.0,156.39,156.36,6.3954]
[1723149053400,20.0,156.4,156.36,6.3954]
[1723149056804,26.3939,156.4,156.36,6.3954]
[1723149058706,26.3939,156.4,156.35,21.6385]
[1723149058918,6.3944,156.39,156.35,15.2427]
[1723149059310,26.3939,156.4,156.36,6.3954]
[1723149059512,6.3931,156.42,156.37,6.395]
[1723149059720,2.64344468,156.5,156.39,15.6758]
[1723149059916,21.51344468,156.5,156.47,6.3908]
[1723149060210,2.64344468,156.5,156.49,6.3901]
[1723149060384,2.64344468,156.5,156.49,23.34060748]
[1723149060699,6.388,156.55,156.49,23.34060748]
[1723149061393,6.3882,156.54,156.49,23.34060748]
[1723149061711,69.2516,156.61,156.49,15.6758]
[1723149061917,24.86915733,156.61,156.52,6.3889]
[1723149062214,6.3865,156.58,156.53,6.3884]
[1723149062579,6.3865,156.58,156.52,6.3889]
[1723149062786,6.3872,156.57,156.52,6.3889]
[1723149063705,6.3877,156.56,156.51,6.6156]
[1723149063918,6.3869,156.57,156.51,6.6156]
[1723149064412,6.3874,156.56,156.51,13.0049]
[1723149065105,6.3869,156.57,156.52,6.3887]
[1723149065310,20.0,156.56,156.52,6.3887]
[1723149065515,26.3874,156.56,156.51,13.0049]
[1723149065703,6.3877,156.55,156.51,6.6156]
[1723149065888,6.3881,156.54,156.51,6.6156]
[1723149066210,6.3878,156.55,156.51,6.6156]
[1723149066419,20.0,156.54,156.51,6.6156]
[1723149066623,26.3882,156.54,156.51,6.6156]
[1723149067505,20.0,156.54,156.51,6.6156]
[1723149067906,20.0,156.6,156.51,6.6156]
[1723149068123,45.0,156.59,156.51,6.6156]
[1723149068514,6.3873,156.56,156.51,13.0048]
[1723149068719,20.0,156.55,156.51,13.0048]
[1723149069305,2.57415733,156.61,156.53,15.971]
[1723149069504,6.3864,156.59,156.54,7.66162665]
[1723149069719,6.3864,156.59,156.55,6.3877]
[1723149070033,6.3865,156.58,156.54,6.388]
[1723149070259,6.3869,156.57,156.53,15.971]
[1723149070525,38.70689199,156.65,156.54,1.27370303]
[1723149070733,6.3869,156.57,156.53,22.3591]
[1723149070910,6.3869,156.57,156.53,15.971]
[1723149071111,6.3882,156.54,156.51,6.6156]
[1723149071649,6.3877,156.55,156.51,6.6156]
[1723149071800,20.0,156.56,156.51,6.6156]
[1723149072005,20.0,156.6,156.51,7.89006315]
[1723149072205,6.3872,156.57,156.52,6.3888]
[1723149072505,20.0,156.56,156.52,6.3888]
[1723149072737,26.3873,156.56,156.51,13.0048]
[1723149073038,6.3877,156.55,156.51,13.0048]
[1723149073724,6.3877,156.55,156.51,6.6156]
[1723149074711,6.3884,156.54,156.51,6.6156]
[1723149074909,6.3877,156.55,156.51,6.6156]
[1723149076041,6.3877,156.55,156.51,13.0049]
[1723149076245,6.3877,156.55,156.51,6.6156]
[1723149079221,26.3874,156.56,156.51,13.0048]
[1723149080842,20.0,156.56,156.49,22.1171]
[1723149081034,6.3886,156.53,156.49,22.1171]
[1723149081218,20.0,156.52,156.49,22.1171]
[1723149081425,20.0,156.52,156.5,6.3894]
[1723149081640,6.388,156.55,156.5,6.3897]
[1723149081948,20.0,156.54,156.5,6.3897]
[1723149082113,26.3882,156.54,156.5,6.3897]
[1723149082745,26.3882,156.54,156.49,28.5071]
[1723149085254,6.3886,156.53,156.49,28.5071]
[1723149085458,6.3886,156.53,156.49,15.6758]
[1723149085459,20.0,156.52,156.49,15.6758]
[1723149085637,1.59756066,156.51,156.49,15.6758]
[1723149085836,1.59756068,156.53,156.49,15.6758]
[1723149086568,6.3893,156.51,156.49,15.6758]
[1723149086735,20.0,156.5,156.49,15.6758]
[1723149087131,20.0,156.5,156.46,6.3913]
[1723149087539,6.3881,156.54,156.5,6.3896]
[1723149087763,20.0,156.53,156.45,21.7296]
[1723149087965,1.59758007,156.52,156.45,21.7296]
[1723149088280,6.3902,156.49,156.45,21.7296]
[1723149088775,27.98845602,156.48,156.45,21.7296]
[1723149088941,26.3907,156.48,156.45,21.7296]
[1723149089252,20.0,156.48,156.45,15.523]
[1723149089960,26.3906,156.48,156.45,15.523]
[1723149090843,20.0,156.48,156.45,15.523]
[1723149091250,15.9753,156.5,156.42,16.2561]
[1723149091546,6.3931,156.42,156.38,16.2561]
[1723149091752,15.9779,156.47,156.38,16.2561]
[1723149091753,6.3927,156.43,156.38,22.6506]
[1723149091944,6.393,156.42,156.38,22.6506]
[1723149092562,6.3927,156.43,156.38,22.6506]
[1723149092744,20.0,156.42,156.38,22.6506]
[1723149093270,20.0,156.42,156.39,6.3941]
[1723149093657,20.0,156.42,156.38,22.6506]
[1723149094072,20.0,156.42,156.39,6.3941]
[1723149094650,20.0,156.42,156.38,32.242]
[1723149094866,6.3911,156.47,156.39,46.2773089]
[1723149095069,20.0,156.49,156.39,46.2773089]
[1723149095070,26.3914,156.46,156.42,6.3929]
[1723149095254,20.0,156.45,156.41,22.3768]
[1723149095950,26.3919,156.45,156.41,22.3768]
[1723149096364,26.3919,156.45,156.41,15.9835]
[1723149097051,20.0,156.45,156.39,51.3941]
[1723149097248,6.3927,156.43,156.38,38.6368]
[1723149097475,20.0,156.42,156.38,38.6368]
[1723149098279,20.0,156.42,156.39,6.3941]
[1723149098571,20.0,156.43,156.39,6.3941]
[1723149098754,26.3926,156.43,156.38,38.6368]
[1723149098958,26.3926,156.43,156.39,6.3942]
[1723149099768,26.3926,156.43,156.38,38.6369]
[1723149100786,6.393,156.42,156.38,38.6369]
[1723149101079,6.393,156.42,156.38,32.2423]
[1723149102983,6.393,156.42,156.38,33.51958275]
[1723149103283,6.393,156.42,156.38,39.91418275]
[1723149104488,26.3927,156.43,156.38,39.91418275]
[1723149105085,26.3927,156.43,156.39,6.3941]
[1723149105256,20.0,156.43,156.4,1.27705673]
[1723149105462,6.3918,156.45,156.4,7.67075673]
[1723149105662,6.3918,156.45,156.4,1.27705673]
[1723149106158,6.3918,156.45,156.39,45.0]
[1723149106584,6.3918,156.45,156.39,72.46]
[1723149106769,20.0,156.44,156.39,72.46]
[1723149106964,26.3923,156.44,156.4,6.3937]
[1723149107172,26.3923,156.44,156.39,51.3941]
[1723149107484,26.3923,156.44,156.4,6.3937]
[1723149108969,6.3927,156.43,156.39,45.0]
[1723149109770,6.3927,156.43,156.38,38.6368]
[1723149109971,6.3931,156.42,156.38,38.6368]
[1723149110167,20.0,156.44,156.38,16.2561]
[1723149110371,20.0,156.45,156.38,16.2561]
[1723149110979,20.0,156.45,156.39,17.26203134]
[1723149111274,6.392,156.45,156.4,7.67028662]
[1723149111592,26.3922,156.44,156.4,7.67028662]
[1723149111787,20.0,156.43,156.4,7.67028662]
[1723149112688,20.0,156.43,156.4,1.27678662]
[1723149112888,20.0,156.43,156.39,15.985]
[1723149113065,6.3927,156.43,156.39,15.985]
[1723149113773,6.3931,156.42,156.39,15.985]
[1723149113984,6.3931,156.42,156.38,22.6507]
[1723149114382,6.3935,156.41,156.38,16.2561]
[1723149115185,15.9789,156.46,156.38,16.2561]
[1723149115493,6.3934,156.42,156.38,32.2422]
[1723149115690,6.3935,156.41,156.38,32.2422]
[1723149116081,6.3931,156.42,156.38,32.2422]
[1723149117394,6.3927,156.43,156.38,39.91419034]
[1723149117791,26.3931,156.42,156.38,32.2422]
[1723149117984,26.3931,156.42,156.38,16.2561]
[1723149117985,6.3939,156.4,156.38,16.2561]
[1723149118193,6.3935,156.41,156.38,16.2561]
[1723149119372,20.0,156.42,156.38,16.2561]
[1723149119575,26.393,156.42,156.38,16.2561]
[1723149121097,31.9493,156.5,156.39,6.3938]
[1723149121098,6.3923,156.44,156.39,6.3938]
[1723149121304,20.0,156.43,156.39,6.3938]
[1723149122398,22.3237,156.51,156.39,43.4449]
[1723149122597,6.3918,156.45,156.41,6.3931]
[1723149122783,20.0,156.44,156.41,6.3931]
[1723149123189,20.0,156.44,156.4,12.5127]
[1723149123396,20.0,156.44,156.4,6.1189]
[1723149123589,6.3929,156.43,156.4,6.1189]
[1723149124698,6.3923,156.44,156.4,6.1189]
[1723149125202,6.3923,156.44,156.4,12.5127]
[1723149125702,18.86,156.42,156.4,12.5127]
[1723149126279,18.86,156.43,156.41,6.3934]
[1723149126981,18.86,156.43,156.4,6.1189]
[1723149127210,6.393,156.42,156.38,16.2561]
[1723149127701,6.3927,156.43,156.38,22.6504]
[1723149127898,6.3931,156.42,156.38,22.6504]
[1723149128275,6.3922,156.44,156.39,6.3941]
[1723149128484,20.0,156.43,156.39,6.3941]
[1723149129683,20.0,156.43,156.4,6.3938]
[1723149129882,6.3914,156.46,156.4,34.8439]
[1723149130097,6.3911,156.47,156.42,6.393]
[1723149130303,20.0,156.46,156.42,6.393]
[1723149130786,6.3911,156.47,156.42,6.393]
[1723149130983,6.3915,156.46,156.42,6.393]
[1723149131299,6.3919,156.45,156.4,15.9839]
[1723149131503,18.55765921,156.5,156.4,15.9839]
[1723149131679,6.3923,156.44,156.4,22.3777]
[1723149131879,18.55765921,156.5,156.42,6.3928]
[1723149132090,20.0,156.49,156.42,6.3928]
[1723149132292,6.3911,156.47,156.42,6.3928]
[1723149132495,20.0,156.46,156.42,6.3928]
[1723149136092,26.3914,156.46,156.42,6.3928]
[1723149136894,6.3893,156.51,156.47,6.3909]
[1723149137088,16.5934,156.56,156.44,15.3611]
[1723149137089,6.3888,156.53,156.49,6.3901]
[1723149137294,6.3881,156.54,156.5,6.3897]
[1723149137507,6.3878,156.55,156.51,1.27440052]
[1723149137808,6.3882,156.54,156.5,16.63545501]
[1723149138208,6.3877,156.55,156.5,16.63545501]
[1723149138508,31.9249,156.62,156.5,16.63545501]
[1723149138509,47.8875,156.62,156.52,6.3889]
[1723149138709,6.387,156.57,156.53,7.66210802]
[1723149138889,6.387,156.57,156.53,1.27360802]
[1723149139693,20.0,156.56,156.52,51.3888]
[1723149141193,26.3874,156.56,156.51,6.3892]
[1723149141793,20.0,156.56,156.52,6.3889]
[1723149142009,20.0,156.57,156.54,6.388]
[1723149142192,26.3865,156.58,156.54,6.388]
[1723149142393,20.0,156.58,156.53,22.3595]
[1723149142597,20.0,156.61,156.53,23.63312444]
[1723149142895,20.0,156.61,156.53,22.3595]
[1723149143394,6.3869,156.57,156.53,22.3595]
[1723149143594,20.0,156.56,156.53,15.9711]
[1723149144009,18.53753327,156.62,156.54,1.27361916]
[1723149144312,18.53753327,156.62,156.54,7.66141916]
[1723149144512,6.387,156.57,156.53,15.9711]
[1723149144708,20.0,156.61,156.5,31.3351]
[1723149144709,20.0,156.56,156.5,31.3351]
[1723149144907,20.0,156.56,156.51,45.0]
[1723149145115,20.0,156.56,156.5,31.3351]
[1723149145116,20.0,156.56,156.5,37.7247]
[1723149145613,6.3872,156.57,156.52,22.3606]
[1723149145818,26.3873,156.56,156.52,15.9718]
[1723149146318,6.3873,156.56,156.52,15.9718]
[1723149146493,20.0,156.55,156.52,15.9718]
[1723149147112,6.3881,156.54,156.5,21.7508]
[1723149148516,20.0,156.55,156.5,15.3611]
[1723149148703,21.59725113,156.58,156.5,15.3611]
[1723149149017,15.9679,156.57,156.5,15.3611]
[1723149149218,6.3882,156.54,156.5,15.3611]
[1723149149416,20.0,156.53,156.5,15.3611]
[1723149150112,20.0,156.54,156.5,21.7508]
[1723149150320,20.0,156.54,156.51,6.3893]
[1723149150818,26.3882,156.54,156.5,21.7507]
[1723149151317,26.3882,156.54,156.5,15.3611]
[1723149152404,20.0,156.54,156.5,21.7507]
[1723149153821,26.3882,156.54,156.5,15.3611]
[1723149154018,20.0,156.54,156.5,21.7508]
[1723149154223,6.3877,156.55,156.5,21.7508]
[1723149154396,20.0,156.54,156.5,21.7508]
[1723149154601,20.0,156.54,156.5,15.3611]
[1723149154803,6.3888,156.53,156.5,15.3611]
[1723149155214,20.0,156.52,156.5,15.3611]
[1723149155623,20.0,156.52,156.5,21.7507]
[1723149155823,20.0,156.54,156.5,21.7507]
[1723149156001,20.0,156.54,156.51,6.389]
[1723149156198,6.3874,156.56,156.52,12.4501]
[1723149156403,6.3857,156.6,156.56,6.3872]
[1723149157307,6.3853,156.61,156.56,21.6961]
[1723149157707,20.0,156.6,156.56,21.6961]
[1723149158125,20.0,156.6,156.57,1.27266052]
[1723149158304,26.3857,156.6,156.57,1.27266052]
[1723149158503,26.3857,156.6,156.56,15.3089]
[1723149159803,26.3857,156.6,156.56,16.58170969]
[1723149160526,20.0,156.6,156.56,15.3089]
[1723149160706,6.3861,156.59,156.56,15.3089]
[1723149162303,6.3862,156.59,156.56,15.3089]
[1723149166028,6.3858,156.6,156.56,15.3089]
[1723149166227,18.82,156.57,156.56,15.3089]
[1723149166746,18.82,156.57,156.54,22.3575]
[1723149167031,20.0,156.59,156.52,22.5877]
[1723149167246,6.387,156.57,156.52,28.9763]
[1723149167411,20.0,156.56,156.53,6.3883]
[1723149168132,6.3872,156.57,156.52,22.5877]
[1723149168346,20.0,156.56,156.52,28.9766]
[1723149169330,20.0,156.56,156.54,6.3877]
[1723149169514,20.0,156.59,156.54,6.3877]
[1723149169712,37.35000747,156.64,156.54,6.3877]
[1723149169713,20.0,156.63,156.54,6.3877]
[1723149170119,6.3868,156.58,156.53,22.3589]
[1723149170319,20.0,156.57,156.53,22.3589]
[1723149173227,26.3869,156.57,156.53,22.3589]
[1723149173436,26.3869,156.57,156.53,15.9704]
[1723149173648,26.3869,156.57,156.53,22.3588]
[1723149174643,20.0,156.57,156.53,22.3588]
[1723149174821,20.0,156.61,156.53,22.3588]
[1723149175028,6.3868,156.58,156.53,22.3588]
[1723149175231,20.0,156.57,156.54,1.27338727]
[1723149176154,20.0,156.57,156.54,6.388]
[1723149176526,6.386,156.6,156.53,15.9704]
[1723149176833,2.56950747,156.64,156.54,45.0]
[1723149177026,6.3862,156.59,156.55,6.3876]
[1723149178242,20.0,156.58,156.55,6.3876]
[1723149178451,20.0,156.58,156.54,51.388]
[1723149180060,18.50423199,156.65,156.55,15.9685]
[1723149180242,2.54473199,156.65,156.59,6.3861]
[1723149180431,6.3841,156.64,156.6,1.27189476]
[1723149180650,18.82,156.62,156.6,1.27189476]
[1723149180828,6.3837,156.65,156.6,7.65739476]
[1723149181163,15.9566,156.68,156.6,6.3855]
[1723149181322,6.3839,156.65,156.6,6.3855]
[1723149181521,6.3841,156.64,156.6,6.3855]
[1723149181720,6.3841,156.64,156.59,22.3506]
[1723149181921,6.3841,156.64,156.58,6.1963]
[1723149181922,6.385,156.62,156.58,12.5827]
[1723149182149,15.9586,156.66,156.58,6.1963]
[1723149182445,6.3849,156.62,156.58,6.1963]
[1723149182652,6.3849,156.62,156.58,12.5827]
[1723149183033,6.3849,156.62,156.58,13.85497407]
[1723149183244,6.3849,156.62,156.58,12.5827]
[1723149183737,6.3854,156.61,156.58,6.1963]
[1723149183955,6.3859,156.6,156.57,16.2612]
[1723149184145,15.9608,156.64,156.57,16.2612]
[1723149184455,6.3858,156.6,156.57,16.2612]
[1723149184962,15.9608,156.64,156.57,16.2612]
[1723149185134,20.0,156.63,156.57,16.2612]
[1723149185334,6.386,156.6,156.57,16.2612]
[1723149185535,6.3853,156.61,156.57,16.2612]
[1723149185744,26.3859,156.6,156.57,16.2612]
[1723149187058,20.0,156.6,156.57,16.2612]
[1723149187355,6.3861,156.59,156.57,16.2612]
[1723149187940,6.3857,156.6,156.57,16.2612]
[1723149188147,6.3853,156.61,156.57,22.648]
[1723149188354,20.0,156.6,156.57,16.2612]
[1723149189547,26.3857,156.6,156.57,16.2612]
[1723149189746,20.0,156.6,156.57,16.2612]
[1723149190142,20.0,156.61,156.58,1.27248005]
[1723149190739,20.0,156.61,156.57,22.648]
[1723149191353,26.3852,156.61,156.57,22.648]
[1723149191551,6.3869,156.57,156.54,22.931]
[1723149191758,18.82,156.55,156.54,22.931]
[1723149192638,18.82,156.55,156.54,16.6051]
[1723149193250,6.3869,156.57,156.54,16.6051]
[1723149193456,20.0,156.56,156.54,16.6051]
[1723149194470,20.0,156.56,156.5,23.0126]
[1723149194657,22.57326386,156.61,156.51,1.27411861]
[1723149194972,22.57326386,156.61,156.52,20.09385287]
[1723149195260,6.3864,156.59,156.54,6.388]
[1723149195464,20.0,156.58,156.53,22.3591]
[1723149195660,6.3865,156.58,156.53,22.3591]
[1723149195865,20.0,156.57,156.53,22.3591]
[1723149196052,26.3869,156.57,156.54,45.0]
[1723149196254,26.3869,156.57,156.53,15.9707]
[1723149196461,20.0,156.57,156.5,23.0126]
[1723149196674,20.0,156.57,156.46,16.6051]
[1723149196675,18.82,156.56,156.46,16.6051]
[1723149196854,15.9715,156.53,156.46,16.6051]
[1723149197168,15.974,156.51,156.42,16.6051]
[1723149197342,20.0,156.5,156.42,16.6051]
[1723149197547,6.391,156.47,156.42,22.9977]
[1723149197768,6.391,156.47,156.43,6.3925]
[1723149198160,20.0,156.5,156.42,22.9979]
[1723149198478,20.0,156.5,156.42,16.6051]
[1723149198479,6.3914,156.46,156.42,16.6051]
[1723149198642,20.0,156.45,156.42,16.6051]
[1723149199452,6.5645,156.53,156.43,36.07668312]
[1723149199682,6.3898,156.5,156.45,6.3917]
[1723149199869,6.3898,156.5,156.46,1.2751181]
[1723149199870,20.0,156.49,156.46,1.2751181]
[1723149200249,6.3906,156.48,156.46,1.2751181]
[1723149200448,6.3906,156.48,156.44,51.3921]
[1723149200861,26.3902,156.49,156.44,51.3921]
[1723149201468,20.0,156.49,156.39,15.9847]
[1723149201687,1.59804899,156.48,156.36,0.10239177]
[1723149201972,20.0,156.49,156.36,0.10239177]
[1723149201973,35.976,156.49,156.38,6.3945]
[1723149202172,6.3926,156.43,156.39,6.3942]
[1723149202357,6.3923,156.44,156.39,6.3942]
[1723149202551,20.0,156.43,156.4,1.27673841]
[1723149203679,20.0,156.43,156.36,0.10239177]
[1723149203859,15.9794,156.46,156.36,0.10239177]
[1723149203860,20.0,156.45,156.36,0.10239177]
[1723149205453,6.3939,156.4,156.36,6.49779177]
[1723149205858,6.3939,156.4,156.36,0.10239177]
[1723149207273,20.0,156.39,156.34,22.22377035]
[1723149207579,6.395,156.37,156.34,22.22377035]
[1723149207758,6.3947,156.38,156.34,22.22377035]
[1723149208076,20.0,156.37,156.34,22.22377035]
[1723149209578,20.0,156.37,156.35,1.27809436]
[1723149209757,20.0,156.37,156.34,28.61997035]
[1723149210873,20.0,156.37,156.34,22.22377035]
[1723149211065,26.3951,156.37,156.34,22.22377035]
[1723149211379,6.3956,156.36,156.34,6.65367035]
[1723149211578,20.0,156.37,156.34,6.65367035]
[1723149211579,26.3959,156.35,156.34,6.65367035]
[1723149211758,6.3967,156.33,156.3,23.0345]
[1723149211959,20.0,156.35,156.3,39.0288]
[1723149212267,20.0,156.35,156.31,6.3973]
[1723149212472,26.3959,156.35,156.31,6.3973]
[1723149212959,20.0,156.35,156.31,6.3973]
[1723149213161,26.3956,156.36,156.31,6.3973]
[1723149213381,6.3941,156.4,156.35,6.3955]
[1723149213684,2.55278166,156.43,156.35,6.3955]
[1723149213980,31.9582,156.46,156.31,6.3972]
[1723149214176,6.3955,156.36,156.32,45.0]
[1723149214568,6.3955,156.36,156.32,51.397]
[1723149215274,6.3969,156.33,156.3,23.0345]
[1723149215971,6.3969,156.33,156.3,16.5504]
[1723149216167,20.0,156.32,156.3,16.5504]
[1723149216563,6.3976,156.31,156.26,6.3994]
[1723149216887,20.0,156.3,156.26,6.3994]
[1723149217383,26.398,156.3,156.26,6.3994]
[1723149217694,6.3976,156.31,156.27,6.3991]
[1723149217896,6.3976,156.31,156.26,6.3994]
[1723149218178,38.4535,156.38,156.24,16.0005]
[1723149218179,15.3142,156.33,156.24,16.0005]
[1723149218384,20.0,156.32,156.22,23.19985358]
[1723149218884,20.0,156.32,156.3,6.3977]
[1723149219068,20.0,156.34,156.3,6.3977]
[1723149219262,20.0,156.37,156.3,6.3977]
[1723149219461,6.3963,156.34,156.29,6.3982]
[1723149219675,20.0,156.33,156.29,15.995]
[1723149219986,20.0,156.33,156.31,6.3974]
[1723149220180,20.0,156.34,156.3,22.5035]
[1723149220480,20.0,156.34,156.3,16.1056]
[1723149220681,6.3963,156.34,156.3,16.1056]
[1723149220886,20.0,156.33,156.3,17.38440885]
[1723149221067,20.0,156.33,156.3,16.1056]
[1723149221258,26.3969,156.33,156.3,16.1056]
[1723149221465,26.3969,156.33,156.25,15.9996]
[1723149221466,20.0,156.33,156.25,15.9996]
[1723149221661,20.0,156.34,156.21,15.9106]
[1723149221866,6.3992,156.27,156.22,16.10508353]
[1723149222095,6.3996,156.26,156.22,6.50358353]
[1723149222265,6.3995,156.27,156.22,6.50358353]
[1723149222465,20.0,156.26,156.22,6.00358353]
[1723149223797,26.3996,156.26,156.22,6.00358353]
[1723149224476,20.0,156.26,156.23,6.4007]
[1723149224680,20.0,156.29,156.23,16.0012]
[1723149224893,20.0,156.32,156.23,22.4019]
[1723149225188,6.3992,156.27,156.23,22.4019]
[1723149225402,6.3992,156.27,156.24,45.0]
[1723149225897,6.3996,156.26,156.24,45.0]
[1723149226068,6.3996,156.26,156.23,45.0]
[1723149226568,15.9966,156.29,156.2,6.64837076]
[1723149226768,20.0,156.28,156.2,1.28012038]
[1723149227069,20.0,156.32,156.19,23.46614258]
[1723149227265,46.6000072,156.31,156.19,7.46054258]
[1723149227590,6.4017,156.21,156.19,0.8150803]
[1723149227785,6.4013,156.22,156.19,0.8150803]
[1723149227991,15.9987,156.27,156.19,0.8150803]
[1723149228194,6.4005,156.24,156.19,7.2173803]
[1723149228376,20.0,156.23,156.19,7.2173803]
[1723149228889,20.0,156.23,156.2,45.0]
[1723149229094,20.0,156.23,156.21,7.68170308]
[1723149229395,15.9952,156.3,156.21,7.68170308]
[1723149229396,6.3996,156.26,156.22,45.0]
[1723149229579,20.0,156.25,156.23,1.27983552]
[1723149229893,20.0,156.25,156.22,60.7103]
[1723149230091,20.0,156.25,156.23,1.2799229]
[1723149230575,15.9952,156.3,156.24,1.27990664]
[1723149230780,9.95630145,156.33,156.24,46.27970134]
[1723149231075,6.3797,156.39,156.27,6.557]
[1723149231271,6.3797,156.39,156.29,6.3983]
[1723149231272,6.3963,156.34,156.29,6.3983]
[1723149231489,6.3984,156.29,156.24,16.0003]
[1723149231896,6.3984,156.29,156.25,45.0]
[1723149232581,6.3988,156.28,156.25,45.0]